[Event "SVK ECo-C Extraliga 2018-19"]
[Site "Slovakia"]
[Date "2018.11.11"]
[Round "2"]
[White "Jurcik, Marian"]
[Black "Mikrut, Dariusz"]
[Result "1/2-1/2"]
[ECO "C85"]
[WhiteElo "2453"]
[BlackElo "2372"]
[Annotator "ChessBase"]
[PlyCount "84"]
[EventDate "2018.11.10"]
[EventType "team-tourn"]
[EventCountry "SVK"]
[SourceTitle "playchess.com"]
[Source "ChessBase"]
[SourceQuality "1"]
[WhiteTeam "Zilina"]
[BlackTeam "Prakovce"]
[TimeControl "40/5400+30:1800+30"]

1. e4 {[%emt 0:00:18]} e5 {[%emt 0:00:00]} 2. Nf3 {[%emt 0:00:14]} Nc6 {[%emt 0:00:13]} 3. Bb5 {[%emt 0:00:41]} a6 {[%emt 0:00:06]} 4. Ba4 {[%emt 0:00:07]} Nf6 {[%emt 0:00:04]} 5. O-O {[%emt 0:00:23]} Be7 {[%emt 0:00:23]} 6. Bxc6 {[%emt 0:00:40]} dxc6 {[%emt 0:00:06]} 7. d3 {[%emt 0:00:06]} Nd7 {[%emt 0:04:17]} 8. Nc3 {[%emt 0:00:52]} O-O {[%emt 0:01:13]} 9. Kh1 {[%emt 0:01:30]} Bd6 {[%emt 0:04:10]} 10. Bg5 {[%emt 0:06:54]} f6 {[%emt 0:04:11]} 11. Be3 {[%emt 0:00:09]} Nc5 {[%emt 0:06:37]} 12. Nh4 {[%emt 0:02:07]} g6 {[%emt 0:06:14]} 13. g3 {[%emt 0:00:32]} Ne6 {[%emt 0:00:10]} 14. Ne2 {[%emt 0:09:20]} c5 {[%emt 0:02:02]} 15. f4 {[%emt 0:04:52]} Nd4 {[%emt 0:07:30]} 16. Nxd4 {[%emt 0:09:00]} cxd4 {[%emt 0:00:49]} 17. fxe5 {[%emt 0:00:15]} Bxe5 {[%emt 0:07:02]} 18. Bh6 {[%emt 0:01:14]} Rf7 {[%emt 0:00:11]} 19. Nf3 {[%emt 0:01:29]} Bg4 {[%emt 0:03:52]} 20. Qd2 {[%emt 0:02:41]} Bxf3+ {[%emt 0:03:31]} 21. Rxf3 {[%emt 0:00:13]} Qd7 {[%emt 0:00:23]} 22. Raf1 {[%emt 0:02:57]} c5 {[%emt 0:00:34]} 23. b3 {[%emt 0:03:35]} Re8 {[%emt 0:00:47]} 24. Qg2 {[%emt 0:05:39]} b5 {[%emt 0:02:48]} 25. g4 {[%emt 0:01:46]} c4 {[%emt 0:14:40]} 26. g5 {[%emt 0:03:44]} cxd3 {[%emt 0:01:05]} 27. cxd3 {[%emt 0:00:54]} Re6 {[%emt 0:17:19]} 28. h4 {[%emt 0:03:39]} Rc6 {[%emt 0:06:32]} 29. h5 {[%emt 0:01:21]} f5 {[%emt 0:00:42]} 30. exf5 {[%emt 0:01:45]} Rxf5 {[%emt 0:00:05]} 31. Rxf5 {[%emt 0:01:39]} gxf5 {[%emt 0:00:05]} 32. Rxf5 {[%emt 0:11:26]} Rc1+ {[%emt 0:00:09]} 33. Rf1 {[%emt 0:00:07]} Rxf1+ {[%emt 0:00:24]} 34. Qxf1 {[%emt 0:00:01]} Qc6+ {[%emt 0:03:12]} 35. Kg1 {[%emt 0:01:02]} Bg7 {[%emt 0:04:08]} 36. Bxg7 {[%emt 0:00:31]} Kxg7 {[%emt 0:00:04]} 37. Qf5 {[%emt 0:11:40]} Qc1+ {[%emt 0:00:13]} 38. Kf2 {[%emt 0:10:23]} Qe3+ {[%emt 0:00:24]} 39. Kf1 {[%emt 0:00:39]} Qc1+ {[%emt 0:00:05]} 40. Ke2 {[%emt 0:00:53]} Qe3+ {[%emt 0:01:54]} 41. Kd1 {[%emt 0:16:07]} Qg1+ {[%emt 0:00:00]} 42. Kc2 {[%emt 0:00:27]} Qh2+ {[%emt 0:00:00]} 1/2-1/2

[Event "SVK ECo-C Extraliga 2018-19"]
[Site "Slovakia"]
[Date "2018.11.11"]
[Round "2"]
[White "Pechac, Jergus"]
[Black "Zilka, Stepan"]
[Result "1-0"]
[ECO "D30"]
[WhiteElo "2449"]
[BlackElo "2530"]
[Annotator "ChessBase"]
[PlyCount "65"]
[EventDate "2018.11.10"]
[EventType "team-tourn"]
[EventCountry "SVK"]
[SourceTitle "playchess.com"]
[Source "ChessBase"]
[SourceQuality "1"]
[WhiteTeam "Zilina"]
[BlackTeam "Prakovce"]
[TimeControl "40/5400+30:1800+30"]

1. d4 {[%emt 0:00:00]} d5 {[%emt 0:00:00]} 2. c4 {[%emt 0:00:00]} e6 {[%emt 0:00:00]} 3. Nf3 {[%emt 0:00:00]} a6 {[%emt 0:00:00]} 4. Bg5 {[%emt 0:00:23]} Be7 {[%emt 0:02:00]} 5. Bxe7 {[%emt 0:00:17]} Qxe7 {[%emt 0:00:34]} 6. e3 {[%emt 0:00:27]} Nf6 {[%emt 0:01:04]} 7. Nc3 {[%emt 0:00:09]} O-O {[%emt 0:00:17]} 8. Qc2 {[%emt 0:01:29]} Nbd7 {[%emt 0:04:04]} 9. Rd1 {[%emt 0:02:43]} dxc4 {[%emt 0:08:56]} 10. Bxc4 {[%emt 0:00:08]} b5 {[%emt 0:00:08]} 11. Be2 {[%emt 0:02:20]} Bb7 {[%emt 0:01:39]} 12. O-O {[%emt 0:17:42]} c5 {[%emt 0:00:29]} 13. a3 {[%emt 0:02:50]} Rac8 {[%emt 0:00:57]} 14. Qb1 {[%emt 0:01:35]} h6 {[%emt 0:03:58]} 15. h3 {[%emt 0:00:58]} Rfd8 {[%emt 0:05:32]} 16. dxc5 {[%emt 0:00:25]} Nxc5 {[%emt 0:01:34]} 17. Rxd8+ {[%emt 0:00:11]} Qxd8 {[%emt 0:05:56]} 18. Rd1 {[%emt 0:01:43]} Qb6 {[%emt 0:00:15]} 19. Nd2 {[%emt 0:03:06]} Qc6 {[%emt 0:12:05]} 20. Bf3 {[%emt 0:00:18]} Qc7 {[%emt 0:00:06]} 21. Bxb7 {[%emt 0:02:48]} Nxb7 {[%emt 0:02:52]} 22. Nde4 {[%emt 0:00:33]} Nxe4 {[%emt 0:02:01]} 23. Qxe4 {[%emt 0:00:34]} Nd6 {[%emt 0:04:10]} 24. Qd4 {[%emt 0:03:42]} Nc4 {[%emt 0:02:00]} 25. Ne4 {[%emt 0:00:12]} f5 {[%emt 0:03:07]} 26. Ng3 {[%emt 0:00:43]} Qe5 {[%emt 0:08:40]} 27. Qd7 {[%emt 0:05:33]} Rf8 {[%emt 0:02:40]} 28. Nh5 {[%emt 0:00:08]} Nb6 {[%emt 0:06:47]} 29. Qe7 {[%emt 0:00:58]} Nc8 {[%emt 0:03:45]} 30. Qb7 {[%emt 0:00:22]} f4 {[%emt 0:04:01]} 31. Nxf4 {[%emt 0:00:23]} Qxb2 {[%emt 0:00:21]} 32. Nxe6 {[%emt 0:00:54]} Nd6 {[%emt 0:03:47]} 33. Rxd6 {[%emt 0:00:25]} 1-0

[Event "SVK ECo-C Extraliga 2018-19"]
[Site "Slovakia"]
[Date "2018.11.11"]
[Round "2"]
[White "Bagi, Mate"]
[Black "Likavsky, Tomas"]
[Result "1-0"]
[ECO "B53"]
[WhiteElo "2444"]
[BlackElo "2430"]
[Annotator "NA"]
[PlyCount "57"]
[EventDate "2018.11.10"]
[EventType "team-tourn"]
[EventCountry "SVK"]
[SourceTitle "playchess.com"]
[Source "ChessBase"]
[SourceQuality "1"]
[WhiteTeam "Streda"]
[BlackTeam "Podhajska"]
[TimeControl "40/5400+30:1800+30"]

1. e4 {[%emt 0:00:00]} c5 {[%emt 0:00:00]} 2. Nf3 {[%emt 0:00:00]} d6 {[%emt 0:00:35]} 3. d4 {[%emt 0:00:24]} cxd4 {[%emt 0:00:07]} 4. Qxd4 {[%emt 0:00:19]} Nc6 {[%emt 0:00:51]} 5. Bb5 {[%emt 0:00:22]} a6 {[%emt 0:06:28]} 6. Bxc6+ {[%emt 0:01:58]} bxc6 {[%emt 0:00:02]} 7. c4 {[%emt 0:04:49]} c5 {[%emt 0:02:39]} 8. Qd3 {[%emt 0:01:08]} g6 {[%emt 0:00:33]} 9. Nc3 {[%emt 0:06:46]} Bg7 {[%emt 0:01:06]} 10. O-O {[%emt 0:02:29]} Bb7 11. Rd1 {[%emt 0:04:18]} Rc8 {[%emt 0:15:27]} 12. Rb1 {[%emt 0:10:00]} Ba8 {[%emt 0:26:27]} 13. h3 {[%emt 0:09:40]} f6 {[%emt 0:05:03]} 14. Nd5 {[%emt 0:05:26]} Nh6 {[%emt 0:00:55]} 15. b4 {[%emt 0:02:07]} cxb4 {[%emt 0:06:35]} 16. Nd4 {[%emt 0:09:46]} Kf7 {[%emt 0:00:07]} 17. Rxb4 {[%emt 0:03:20]} Re8 {[%emt 0:07:02]} 18. Be3 {[%emt 0:08:14]} e5 {[%emt 0:05:12]} 19. Ne2 {[%emt 0:01:45]} Ng8 {[%emt 0:02:52]} 20. Qb3 {[%emt 0:04:37]} Re6 {[%emt 0:06:03]} 21. c5 {[%emt 0:03:40]} Bf8 {[%emt 0:04:18]} 22. Nb6 Rb8 {[%emt 0:02:19]} 23. Nxa8 {[%emt 0:02:42]} Rxb4 {[%emt 0:00:53]} 24. Qxb4 {[%emt 0:00:17]} Qxa8 {[%emt 0:00:08]} 25. cxd6 {[%emt 0:00:40]} Qc6 {[%emt 0:01:34]} 26. Bc5 {[%emt 0:00:49]} f5 {[%emt 0:01:29]} 27. d7 {[%emt 0:02:21]} Bxc5 {[%emt 0:00:46]} 28. d8=N+ {[%emt 0:00:19]} Kf6 {[%emt 0:00:59]} 29. Nxc6 {[%emt 0:01:22]} 1-0

[Event "SVK ECo-C Extraliga 2018-19"]
[Site "Slovakia"]
[Date "2018.11.11"]
[Round "2"]
[White "Mrva, Martin"]
[Black "Hrabusa, Matej"]
[Result "0-1"]
[ECO "A06"]
[WhiteElo "2430"]
[BlackElo "2398"]
[Annotator "NA RC"]
[PlyCount "86"]
[EventDate "2018.11.10"]
[EventType "team-tourn"]
[EventCountry "SVK"]
[SourceTitle "playchess.com"]
[Source "ChessBase"]
[SourceQuality "1"]
[WhiteTeam "Snina"]
[BlackTeam "Liptovska"]
[TimeControl "40/5400+30:1800+30"]

1. Nf3 {[%emt 0:00:00]} d5 {[%emt 0:00:00]} 2. g3 {[%emt 0:01:19]} Nf6 {[%emt 0:00:00]} 3. Bg2 {[%emt 0:00:06]} e6 {[%emt 0:01:06]} 4. O-O {[%emt 0:00:35]} c5 {[%emt 0:00:24]} 5. c4 {[%emt 0:04:02]} dxc4 {[%emt 0:03:16]} 6. Qa4+ {[%emt 0:06:32]} Bd7 {[%emt 0:01:43]} 7. Qxc4 {[%emt 0:04:14]} Bc6 {[%emt 0:01:58] LiveBook: 44 Games} 8. Re1 {[%emt 0:05:04]} Be7 {[%emt 0:02:53]} 9. e4 {[%emt 0:04:52]} Nbd7 {[%emt 0:02:53]} 10. Nc3 {[%emt 0:04:36]} Rc8 {[%emt 0:06:51]} 11. Qe2 {[%emt 0:02:23]} O-O {[%emt 0:05:29]} (11... c4 $5) 12. d4 {[%emt 0:05:44]} Re8 {[%emt 0:03:59]} 13. Rd1 {[%emt 0:02:53]} b6 {[%emt 0:04:15]} 14. dxc5 {[%emt 0:07:25]} Bxc5 {[%emt 0:01:26] [#]} 15. Ne5 $1 {[%emt 0:02:31]} Ba8 {[%emt 0:07:46]} 16. Nb5 {[%emt 0:07:22]} a6 {[%emt 0:07:09]} 17. Bg5 {[%emt 0:07:31]} Nxe5 {[%emt 0:13:42]} 18. Rxd8 {[%emt 0:00:27]} Rexd8 $16 {[%emt 0:00:03]} 19. Nc3 {[%emt 0:00:56]} Rd3 {[%emt 0:06:49]} 20. Rd1 {[%emt 0:11:53]} Rcd8 {[%emt 0:03:22]} 21. Rxd3 {[%emt 0:01:29]} Rxd3 {[%emt 0:00:44]} 22. Bxf6 {[%emt 0:03:50]} gxf6 {[%emt 0:00:08]} 23. Kh1 {[%emt 0:00:17]} Rd8 {[%emt 0:01:48]} 24. Bf1 {[%emt 0:05:07]} f5 {[%emt 0:02:13]} 25. Qh5 {[%emt 0:04:58]} f6 {[%emt 0:02:56]} 26. f3 {[%emt 0:01:00]} b5 {[%emt 0:05:16]} 27. a3 {[%emt 0:00:05]} Kg7 {[%emt 0:01:28]} 28. Be2 {[%emt 0:00:25]} Rd2 {[%emt 0:01:44]} 29. Qe8 {[%emt 0:01:20]} Bc6 {[%emt 0:00:56]} 30. Qxe6 {[%emt 0:03:04]} fxe4 {[%emt 0:00:17]} 31. f4 {[%emt 0:00:29]} e3+ {[%emt 0:01:41]} 32. Kg1 {[%emt 0:00:05]} Nf3+ {[%emt 0:00:35]} 33. Kf1 {[%emt 0:00:26]} Nxh2+ {[%emt 0:02:14]} 34. Ke1 {[%emt 0:00:03]} Nf3+ {[%emt 0:00:13]} 35. Kf1 {[%emt 0:00:08]} Bd7 {[%emt 0:01:47]} 36. Qxd7+ {[%emt 0:01:28]} Rxd7 {[%emt 0:00:05]} 37. Bxf3 {[%emt 0:00:04]} Rd2 {[%emt 0:01:44]} 38. Nd1 {[%emt 0:02:01]} Bd4 {[%emt 0:00:25]} 39. b3 {[%emt 0:00:44]} Ra2 {[%emt 0:00:43]} 40. a4 {[%emt 0:00:38]} bxa4 {[%emt 0:00:55]} 41. bxa4 {[%emt 0:30:05]} Rxa4 {[%emt 0:30:13]} 42. Ke2 {[%emt 0:00:07]} Ra2+ {[%emt 0:00:15]} 43. Kd3 {[%emt 0:00:58]} Rd2+ {[%emt 0:00:16] Kxd4} 0-1

[Event "SVK ECo-C Extraliga 2018-19"]
[Site "Slovakia"]
[Date "2018.11.11"]
[Round "2"]
[White "Piesik, Piotr"]
[Black "Stohl, Igor"]
[Result "1/2-1/2"]
[ECO "A05"]
[WhiteElo "2407"]
[BlackElo "2503"]
[Annotator "ChessBase"]
[PlyCount "54"]
[EventDate "2018.11.10"]
[EventType "team-tourn"]
[EventCountry "SVK"]
[SourceTitle "playchess.com"]
[Source "ChessBase"]
[SourceQuality "1"]
[WhiteTeam "Dubnica"]
[BlackTeam "Modra"]
[TimeControl "40/5400+30:1800+30"]

1. Nf3 {[%emt 0:00:00]} Nf6 {[%emt 0:00:00]} 2. g3 {[%emt 0:00:02]} g6 {[%emt 0:00:09]} 3. Bg2 {[%emt 0:00:05]} Bg7 {[%emt 0:00:04]} 4. O-O {[%emt 0:00:08]} O-O {[%emt 0:00:09]} 5. d4 {[%emt 0:00:46]} d5 {[%emt 0:00:20]} 6. c4 {[%emt 0:01:16]} dxc4 {[%emt 0:00:45]} 7. Na3 {[%emt 0:00:12]} c5 {[%emt 0:00:29]} 8. Nxc4 {[%emt 0:01:52]} Be6 {[%emt 0:01:33]} 9. b3 {[%emt 0:03:14]} Nc6 {[%emt 0:00:55]} 10. Bb2 {[%emt 0:01:33]} cxd4 {[%emt 0:02:02]} 11. Nxd4 {[%emt 0:02:40]} Nxd4 {[%emt 0:00:41]} 12. Qxd4 {[%emt 0:02:13]} Qxd4 {[%emt 0:05:18]} 13. Bxd4 {[%emt 0:00:48]} Nd5 {[%emt 0:00:32]} 14. Bxg7 {[%emt 0:07:51]} Kxg7 {[%emt 0:00:36]} 15. Bxd5 {[%emt 0:19:32]} Bxd5 {[%emt 0:00:10]} 16. Ne3 {[%emt 0:00:01]} Be6 {[%emt 0:05:54]} 17. Rfc1 {[%emt 0:03:01]} Rfc8 {[%emt 0:00:53]} 18. Kf1 {[%emt 0:02:28]} a5 {[%emt 0:05:23]} 19. Rxc8 {[%emt 0:05:38]} Rxc8 {[%emt 0:00:20]} 20. Ke1 {[%emt 0:00:04]} Kf6 {[%emt 0:06:59]} 21. Rb1 {[%emt 0:06:21]} g5 {[%emt 0:08:52]} 22. Kd2 {[%emt 0:02:20]} b5 {[%emt 0:04:34]} 23. b4 {[%emt 0:02:40]} axb4 {[%emt 0:07:31]} 24. Rxb4 {[%emt 0:00:08]} Ra8 {[%emt 0:00:09]} 25. Rxb5 {[%emt 0:02:09]} Rxa2+ {[%emt 0:00:11]} 26. Kd3 {[%emt 0:01:31]} Ra3+ {[%emt 0:06:09]} 27. Kd2 {[%emt 0:02:42]} Ra2+ {[%emt 0:01:02]} 1/2-1/2

[Event "SVK ECo-C Extraliga 2018-19"]
[Site "Slovakia"]
[Date "2018.11.11"]
[Round "2"]
[White "Manik, Mikulas"]
[Black "Petrik, Tomas"]
[Result "1/2-1/2"]
[ECO "C18"]
[WhiteElo "2404"]
[BlackElo "2476"]
[Annotator "ChessBase"]
[PlyCount "41"]
[EventDate "2018.11.10"]
[EventType "team-tourn"]
[EventCountry "SVK"]
[SourceTitle "playchess.com"]
[Source "ChessBase"]
[SourceQuality "1"]
[WhiteTeam "Prakovce"]
[BlackTeam "Zilina"]
[TimeControl "40/5400+30:1800+30"]

1. e4 {[%emt 0:00:00]} e6 {[%emt 0:00:25]} 2. d4 {[%emt 0:00:00]} d5 {[%emt 0:00:08]} 3. Nc3 {[%emt 0:00:00]} Bb4 {[%emt 0:00:24]} 4. e5 {[%emt 0:00:00]} Ne7 {[%emt 0:00:12]} 5. a3 {[%emt 0:00:00]} Bxc3+ {[%emt 0:00:08]} 6. bxc3 {[%emt 0:00:00]} c5 {[%emt 0:00:35]} 7. Qg4 {[%emt 0:00:00]} Qc7 {[%emt 0:03:09]} 8. Qxg7 {[%emt 0:01:16]} Rg8 {[%emt 0:03:23]} 9. Qxh7 {[%emt 0:00:03]} cxd4 {[%emt 0:00:12]} 10. Ne2 {[%emt 0:00:11]} Nbc6 {[%emt 0:00:39]} 11. f4 {[%emt 0:00:38]} dxc3 {[%emt 0:01:53]} 12. h4 {[%emt 0:07:10]} Bd7 {[%emt 0:05:40]} 13. h5 {[%emt 0:01:46]} O-O-O {[%emt 0:02:16]} 14. Qd3 {[%emt 0:05:55]} d4 {[%emt 0:03:16]} 15. h6 {[%emt 0:12:19]} Rg6 {[%emt 0:01:52]} 16. h7 {[%emt 0:08:07]} Rh8 {[%emt 0:00:28]} 17. Nxd4 {[%emt 0:08:54]} Nxd4 {[%emt 0:03:17]} 18. Qxd4 {[%emt 0:02:04]} Bc6 {[%emt 0:00:51]} 19. Kf2 {[%emt 0:09:27]} Qa5 {[%emt 0:45:49]} 20. Be3 {[%emt 0:23:57]} Rg7 {[%emt 0:18:37]} 21. Qxa7 {[%emt 0:08:46]} 1/2-1/2

[Event "SVK ECo-C Extraliga 2018-19"]
[Site "Slovakia"]
[Date "2018.11.11"]
[Round "2"]
[White "Grubisic, Ilija"]
[Black "Kourousis, Epaminondas"]
[Result "1/2-1/2"]
[ECO "B22"]
[WhiteElo "2370"]
[BlackElo "2391"]
[Annotator "NA"]
[PlyCount "44"]
[EventDate "2018.11.10"]
[EventType "team-tourn"]
[EventCountry "SVK"]
[SourceTitle "playchess.com"]
[Source "ChessBase"]
[SourceQuality "1"]
[WhiteTeam "Slovan"]
[BlackTeam "Komarno"]
[TimeControl "40/5400+30:1800+30"]

1. e4 {[%emt 0:00:00]} c5 {[%emt 0:00:13]} 2. c3 {[%emt 0:00:00]} Nf6 {[%emt 0:00:14]} 3. e5 {[%emt 0:00:00]} Nd5 {[%emt 0:00:09]} 4. Nf3 {[%emt 0:00:10]} e6 {[%emt 0:00:57]} 5. d4 {[%emt 0:01:01]} cxd4 {[%emt 0:00:24]} 6. cxd4 {[%emt 0:01:05]} d6 {[%emt 0:00:26]} 7. Bc4 {[%emt 0:01:49]} Nc6 {[%emt 0:00:20]} 8. O-O {[%emt 0:00:41]} Be7 {[%emt 0:00:09]} 9. Qe2 {[%emt 0:02:45]} O-O {[%emt 0:00:22]} 10. Rd1 {[%emt 0:04:38]} b6 {[%emt 0:00:25]} 11. Qe4 {[%emt 0:13:11]} Bb7 {[%emt 0:02:17]} 12. Qg4 {[%emt 0:02:52]} dxe5 {[%emt 0:07:36]} 13. Bxd5 {[%emt 0:03:00]} exd5 {[%emt 0:05:55]} 14. dxe5 {[%emt 0:00:15]} Qc8 {[%emt 0:05:06]} 15. Qxc8 {[%emt 0:12:10]} Raxc8 {[%emt 0:00:08]} 16. Nc3 {[%emt 0:00:11]} Rfd8 {[%emt 0:31:43]} 17. Nxd5 {[%emt 0:01:59]} Bc5 {[%emt 0:09:33]} 18. Bg5 {[%emt 0:05:42]} Re8 {[%emt 0:00:17]} 19. Bf4 {[%emt 0:00:21]} Red8 {[%emt 0:08:37]} 20. Bg5 {[%emt 0:06:54]} Re8 {[%emt 0:00:23]} 21. Bf4 {[%emt 0:00:20]} Red8 {[%emt 0:00:23]} 22. Bg5 {[%emt 0:01:11]} Re8 1/2-1/2

[Event "SVK ECo-C Extraliga 2018-19"]
[Site "Slovakia"]
[Date "2018.11.11"]
[Round "2"]
[White "Jacko, Vladimir"]
[Black "Nayhebaver, Martin"]
[Result "1-0"]
[ECO "E12"]
[WhiteElo "2330"]
[BlackElo "2462"]
[Annotator "ChessBase"]
[PlyCount "85"]
[EventDate "2018.11.10"]
[EventType "team-tourn"]
[EventCountry "SVK"]
[SourceTitle "playchess.com"]
[Source "ChessBase"]
[SourceQuality "1"]
[WhiteTeam "Prakovce"]
[BlackTeam "Zilina"]
[TimeControl "40/5400+30:1800+30"]

1. d4 {[%emt 0:00:32]} Nf6 {[%emt 0:00:00]} 2. c4 {[%emt 0:00:43]} e6 {[%emt 0:00:26]} 3. Nf3 {[%emt 0:08:41]} b6 {[%emt 0:00:49]} 4. Bg5 {[%emt 0:00:33]} Bb7 {[%emt 0:01:30]} 5. Nbd2 {[%emt 0:00:30]} c5 {[%emt 0:02:23]} 6. e3 {[%emt 0:00:07]} h6 {[%emt 0:00:33]} 7. Bh4 {[%emt 0:01:13]} Nc6 {[%emt 0:10:52]} 8. d5 {[%emt 0:21:05]} exd5 {[%emt 0:00:26]} 9. cxd5 {[%emt 0:00:02]} Nb4 {[%emt 0:00:57]} 10. e4 {[%emt 0:01:51]} g5 {[%emt 0:02:26]} 11. Bg3 {[%emt 0:07:04]} Qe7 {[%emt 0:01:08]} 12. Ne5 {[%emt 0:33:20]} Bg7 {[%emt 0:25:23]} 13. d6 {[%emt 0:01:05]} Qd8 {[%emt 0:00:50]} 14. a3 {[%emt 0:00:48]} Nc6 {[%emt 0:01:56]} 15. Nec4 {[%emt 0:03:27]} Nd4 {[%emt 0:02:17]} 16. Bd3 {[%emt 0:00:22]} b5 {[%emt 0:01:59]} 17. Ne3 {[%emt 0:00:14]} Qb6 {[%emt 0:01:09]} 18. O-O {[%emt 0:01:11]} O-O-O {[%emt 0:11:57]} 19. a4 {[%emt 0:00:10]} a6 {[%emt 0:00:12]} 20. axb5 {[%emt 0:00:20]} axb5 {[%emt 0:00:07]} 21. Nc2 {[%emt 0:10:52]} Nc6 {[%emt 0:06:01]} 22. Re1 {[%emt 0:00:47]} c4 {[%emt 0:01:14]} 23. Bf1 {[%emt 0:01:20]} h5 {[%emt 0:00:11]} 24. h3 {[%emt 0:00:34]} h4 {[%emt 0:02:08]} 25. Bh2 {[%emt 0:00:03]} Nh5 {[%emt 0:00:51]} 26. Ne3 {[%emt 0:00:40]} Be5 {[%emt 0:01:07]} 27. Bxc4 {[%emt 0:01:22]} Bxh2+ {[%emt 0:01:16]} 28. Kxh2 {[%emt 0:00:01]} bxc4 {[%emt 0:00:12]} 29. Ndxc4 {[%emt 0:00:09]} Qb5 {[%emt 0:03:32]} 30. Ra3 Qc5 {[%emt 0:02:20]} 31. Rc3 {[%emt 0:02:44]} Nf4 {[%emt 0:01:32]} 32. Qa4 {[%emt 0:00:51]} Kb8 {[%emt 0:01:29]} 33. Ra1 {[%emt 0:00:44]} Qa7 {[%emt 0:02:50]} 34. Qd1 {[%emt 0:01:06]} Qd4 {[%emt 0:00:08]} 35. Qc2 {[%emt 0:01:24]} Rhe8 {[%emt 0:00:42]} 36. Rb3 {[%emt 0:00:34]} Nd3 {[%emt 0:11:51]} 37. Qxd3 {[%emt 0:00:49]} Qxd3 {[%emt 0:00:14]} 38. Rxd3 {[%emt 0:00:01]} Rxe4 {[%emt 0:00:11]} 39. Rb3 {[%emt 0:00:35]} Nd4 {[%emt 0:02:02]} 40. Rb6 {[%emt 0:00:55]} Nc2 {[%emt 0:00:10]} 41. Raa6 {[%emt 0:31:05]} Kc8 {[%emt 0:32:33]} 42. Ra7 {[%emt 0:00:00]} Nxe3 {[%emt 0:00:00]} 43. Nxe3 {[%emt 0:00:00]} 1-0

[Event "SVK ECo-C Extraliga 2018-19"]
[Site "Slovakia"]
[Date "2018.11.11"]
[Round "2"]
[White "Zvarik, Martin"]
[Black "Zambor, Norbert"]
[Result "0-1"]
[ECO "A45"]
[WhiteElo "2329"]
[BlackElo "2253"]
[Annotator "NA"]
[PlyCount "70"]
[EventDate "2018.11.10"]
[EventType "team-tourn"]
[EventCountry "SVK"]
[SourceTitle "playchess.com"]
[Source "ChessBase"]
[SourceQuality "1"]
[WhiteTeam "Zilina"]
[BlackTeam "Prakovce"]
[TimeControl "40/5400+30:1800+30"]

1. d4 {[%emt 0:01:04]} Nf6 {[%emt 0:00:19]} 2. Bg5 {[%emt 0:00:30]} e6 {[%emt 0:00:28]} 3. Nd2 {[%emt 0:01:58]} c5 {[%emt 0:05:18]} 4. e3 {[%emt 0:01:43]} d5 {[%emt 0:03:29]} 5. c3 {[%emt 0:02:36]} Nc6 {[%emt 0:00:20]} 6. Bd3 {[%emt 0:09:30]} e5 {[%emt 0:04:52]} 7. dxc5 {[%emt 0:09:48]} Bxc5 {[%emt 0:01:46]} 8. b4 {[%emt 0:02:59]} Be7 {[%emt 0:07:54]} 9. Ne2 {[%emt 0:06:49]} Be6 {[%emt 0:04:50]} 10. a3 {[%emt 0:06:34]} Rc8 {[%emt 0:04:14]} 11. Rc1 {[%emt 0:11:19]} a5 {[%emt 0:06:15]} 12. O-O {[%emt 0:09:56]} O-O {[%emt 0:04:33]} 13. Bb1 {[%emt 0:03:45]} h6 {[%emt 0:02:04]} 14. Bh4 {[%emt 0:04:30]} Re8 {[%emt 0:11:46]} 15. Kh1 {[%emt 0:05:12]} axb4 {[%emt 0:14:30]} 16. cxb4 {[%emt 0:01:41]} Ra8 {[%emt 0:10:51]} 17. Qb3 {[%emt 0:04:05]} d4 {[%emt 0:01:36]} 18. Qb2 {[%emt 0:01:49]} dxe3 {[%emt 0:01:50]} 19. fxe3 {[%emt 0:01:03]} Ng4 {[%emt 0:01:46]} 20. Bxe7 {[%emt 0:02:09]} Qxe7 {[%emt 0:02:27]} 21. Rf3 {[%emt 0:00:09]} Qh4 {[%emt 0:02:34]} 22. Nf1 {[%emt 0:00:28]} Bd5 {[%emt 0:04:04]} 23. Rg3 {[%emt 0:01:24]} Nf2+ {[%emt 0:00:07]} 24. Kg1 {[%emt 0:00:03]} Ne4 {[%emt 0:00:04]} 25. Bxe4 {[%emt 0:05:03]} Bxe4 {[%emt 0:00:26]} 26. Rc4 {[%emt 0:00:27]} b5 {[%emt 0:02:24]} 27. Rc5 {[%emt 0:00:32]} Qf6 {[%emt 0:01:50]} 28. Nd2 {[%emt 0:00:57]} Bd3 {[%emt 0:00:32]} 29. Nf4 {[%emt 0:00:38]} Nd4 {[%emt 0:00:19]} 30. exd4 {[%emt 0:01:10]} exf4 {[%emt 0:00:50]} 31. Rxd3 {[%emt 0:00:13]} Re2 {[%emt 0:00:23]} 32. Rf3 {[%emt 0:01:53]} Rae8 {[%emt 0:00:32]} 33. Re5 {[%emt 0:02:04]} R8xe5 {[%emt 0:00:13]} 34. dxe5 {[%emt 0:00:07]} Qg6 {[%emt 0:00:21]} 35. Rf2 {[%emt 0:00:38]} Qb6 {[%emt 0:00:17]} 0-1